Cogmind - Beta 17 @@@ ROGUE MODE // 2026.07.12 @ 08:03:16 Player: Scared Dad Result: Destroyed by MU-SZD(R) with Subdweller Shrapnel Launcher Performance ------------- Evolutions (0) 0 Regions Visited (2) 400 Robots Destroyed (16) 80 Value Destroyed (462) 462 Prototype IDs (5) 100 Alien Tech Used (0) 0 Bonus (5000) 5000 TOTAL SCORE: 6042 Bonus ------- Prayed to X0-1V1 5000 Cogmind --------- Core Integrity 0/250 Matter 297/300 Energy 100/100 System Corruption 1% Temperature Cool (0) Movement Walking (190) Ox1 Location -10/Subcaves Parts ------- > --- POWER (1) -------- (None) > --- PROPULSION (2) --- Aluminum Leg Aluminum Leg > --- UTILITY (2) ------ Large Storage Unit X0-1V1's Piety Tracker > --- WEAPON (2) ------- Subdweller Machine Gun Subdweller Machine Gun > --- INVENTORY (15) --- Light Angular Momentum Engine Small Storage Unit Sensor Array Sensor Array Targeting Computer Light Armor Plating Scrap Shield Small Laser Beamcaster Assault Rifle Grenade Launcher Datajack Mining Laser Heavy Hammer Peak State ------------ > --- POWER ------------ Light Ion Engine > --- PROPULSION ------- Aluminum Leg Aluminum Leg > --- UTILITY ---------- Large Storage Unit X0-1V1's Piety Tracker > --- WEAPON ----------- Subdweller Machine Gun Subdweller Machine Gun > --- INVENTORY -------- Ion Engine Small Storage Unit Sensor Array Sensor Array Targeting Computer Light Armor Plating Scrap Shield Small Laser Beamcaster Assault Rifle Grenade Launcher Datajack Mining Laser Heavy Hammer [Rating: 23] Favorites ----------- Power Light Ion Engine Engine Light Ion Engine Propulsion Light Treads Treads Light Treads Leg Aluminum Leg Wheel Wheel Utility Large Storage Unit Device Sensor Array Storage Large Storage Unit Protection Weapon Shielding Weapon Light Assault Rifle Energy Gun Medium Laser Ballistic Gun Light Assault Rifle Special Weapon Mining Laser Special Melee Weapon Datajack Build | -11 -10 -10 ------- Run | Yrd Mat Sub Slots Evolved . | . . . Power . | . . . Propulsion . | . . . Utility . | . . . Weapon . | . . . Parts Attached 26 | 6 13 7 Power 4 | 1 3 . Engine 4 | 1 3 . Core . | . . . Reactor . | . . . Propulsion 7 | 2 2 3 Treads 2 | . 2 . Leg 3 | . . 3 Wheel 2 | 2 . . Hover . | . . . Flight . | . . . Utility 7 | 1 6 . Device 3 | . 3 . Storage 2 | 1 1 . Processor . | . . . Hackware . | . . . Protection 2 | . 2 . Artifact . | . . . Weapon 8 | 2 2 4 Energy Gun 2 | 1 . 1 Energy Cannon . | . . . Ballistic Gun 4 | 1 1 2 Ballistic Cannon . | . . . Launcher . | . . . Special Weapon 1 | . . 1 Impact Weapon . | . . . Slashing Weapon . | . . . Piercing Weapon . | . . . Special Melee Weapon 1 | . 1 . Unidentified Prototypes 1 | . 1 . Parts Lost 3 | . . 3 Power 1 | . . 1 Propulsion 2 | . . 2 Utility . | . . . Weapon . | . . . Highest Loss Streak 2 | . . 2 To Critical Strikes . | . . . Average Backups 10 | 5 10 13 Power 1 | . 1 1 Propulsion 2 | 3 2 1 Utility 2 | . 2 6 Weapon 2 | . 2 3 Tool/Special . | . . . Unused Backups 16 | . 5 11 Power 5 | . 2 3 Propulsion 2 | . 2 . Utility 4 | . . 4 Weapon 5 | . 1 4 Tool/Special . | . . . Average Slot Usage (%) 98 | . 98 100 Engine 13 | . 13 14 Treads 23 | . 26 11 Leg 3 | . . 16 Wheel 1 | . 1 . Device 7 | . 5 14 Storage 14 | . 14 14 Protection 5 | . 7 . Energy Gun 12 | . 13 5 Ballistic Gun 14 | . 12 20 Special Melee Weapon 1 | . 1 . Peak Build Rating 23 | 6 20 23 Average Rating 9 | 5 7 21 On Entrance 8 | . 6 20 Avg Prop Armor Cover (%) . | . . . Naked Turns . | . . . Heaviest Build 32 | 13 27 32 Greatest Support 40 | 20 40 40 Greatest Overweight (x) 2 | . 1 2 Average Overweight (x) . | . . . Largest Inventory Capacity 15 | 8 15 15 Average Capacity 12 | 7 12 15 Most Carried 15 | 6 15 15 Average Carried 10 | 5 10 14 Final Capacity 15 | 8 15 15 Final Carried 15 | 6 15 15 Class Distribution -------------------- 100% | Mutant Dominant Class ---------------- Mutant | -10/Materials Mutant | -10/Subcaves Resources | -11 -10 -10 ----------- Run | Yrd Mat Sub Matter Collected 631 | 226 281 124 Remotely . | . . . Salvage Created 503 | . 445 58 Parts 33 | . 30 3 Haulers Intercepted . | . . . Recyclers Shooed . | . . . Parts Field Recycled . | . . . Retrieved Matter . | . . . Parts Self-Destructed 11 | . . 11 Prevented . | . . . Parts Restored . | . . . Kills | -11 -10 -10 ------- Run | Yrd Mat Sub Combat Hostiles Destroyed 16 | . 14 2 Guns 16 | . 14 2 Classes Destroyed 3 | . 2 1 Swarmer 5 | . 5 . Grunt 9 | . 9 . Subdweller 2 | . . 2 Best Kill Streak 4 | . 4 1 Combat Bots Only 4 | . 4 1 Max Kills in Single Turn 1 | . 1 1 Gunslinging . | . . . Exploded . | . . . Melee . | . . . Uniques/NPCs Destroyed . | . . . Combat | -11 -10 -10 -------- Run | Yrd Mat Sub Hostile Shots Fired 98 | . 76 22 Missed 22 | . 20 2 Hits 76 | . 56 20 Projectile 76 | . 56 20 AOE 3 | . . 3 Critical Strikes 3 | . . 3 Damage Taken 1208 | 1 637 570 Core 266 | . 105 161 Absorbed by Shields . | . . . Redirected to Shielding 20 | . 20 . Core Remaining (%) 100 | 100 . . Volleys Fired 70 | . 54 16 Largest 2 | . 2 2 Hottest 100 | . 70 100 Shots Fired 135 | . 108 27 Gun 132 | . 108 24 Cannon . | . . . Launcher . | . . . Special 3 | . . 3 Kinetic 70 | . 54 16 Thermal 65 | . 54 11 Explosive . | . . . Electromagnetic . | . . . Robot Hit Streak 14 | . 9 14 Robot Miss Streak 3 | . 3 1 Penetration Max . | . . . Secondary Targets . | . . . Shots Hit Robots 92 | . 71 21 Core Hits 33 | . 29 4 Critical Kills . | . . . Critical Parts Destroyed . | . . . Critical Strikes 3 | . 3 . Burn 3 | . 3 . Melee Attacks 8 | . 8 . Impact . | . . . Slashing . | . . . Piercing . | . . . Sneak Attacks . | . . . Combat Hostiles . | . . . Follow-up Attacks . | . . . Damage Inflicted 1045 | 2 744 299 Guns 1042 | . 743 299 Cannons . | . . . Explosions . | . . . Melee . | . . . Ramming 3 | 2 1 . Kinetic 505 | . 262 243 Thermal 537 | . 481 56 Explosive . | . . . Electromagnetic . | . . . Impact . | . . . Slashing . | . . . Piercing . | . . . Highest Corruption 1 | . 1 1 Average Corruption 1 | . 1 1 Corruption Purged . | . . . Corruption Blocked . | . . . Effects 10 | . 6 4 Message Errors 3 | . 2 1 Heat Flow Errors 2 | . 1 1 Energy Discharges 2 | . 1 1 Data Loss (minor) 1 | . 1 . Data Loss (major) 1 | . . 1 Alerts 1 | . 1 . Overload Shots . | . . . Overflow Damage . | . . . Projectiles . | . . . Explosions . | . . . Melee . | . . . Knockbacks . | . . . Impact . | . . . Kinetic . | . . . Secondary . | . . . Self-Inflicted Damage 1 | 1 . . Shots . | . . . Rammed 2 | 1 1 . Targets Rammed 2 | 1 1 . Kicked . | . . . Crushed . | . . . Highest Temperature 339 | . 339 213 Average Temperature 112 | . 112 115 Received Heat Transfer 393 | . 294 99 Siege Activations . | . . . Martial Activations . | . . . Shielding Activations . | . . . Robots Disrupted . | . . . Combat Hostiles . | . . . Robots Corrupted . | . . . Combat Hostiles . | . . . Parts Fried . | . . . Impact Corruptions . | . . . Robots Melted . | . . . Combat Hostiles . | . . . Parts Melted 2 | . 2 . Heat Transferred 1790 | . 1665 125 Parts Sabotaged . | . . . Parts Stolen . | . . . Parts Stripped . | . . . Power Chain Reactions . | . . . Alert | -11 -10 -10 ------- Run | Yrd Mat Sub Maximum Alert Level . | . . . Low Security (%) 100 | 100 100 . Level 1 . | . . . Level 2 . | . . . Level 3 . | . . . Level 4 . | . . . Level 5 . | . . . High Security . | . . . Max Security . | . . . Peak Influence 122 | . 122 . Initial . | . . . Average 23 | . 30 . Influence Increases 399 | . 399 . Destroy 0b10 Robot/C 280 | . 280 . Destroy Leader 40 | . 40 . Successful Hack 19 | . 19 . Lose Combat Pursuer 60 | . 60 . Influence Decreases 399 | . 399 . Time Decay 399 | . 399 . Squads Dispatched 1 | . 1 . Investigation . | . . . Extermination . | . . . Reinforcement 1 | . 1 . Assault . | . . . Garrison . | . . . Intercept . | . . . Searches Triggered . | . . . Construction Impeded . | . . . Haulers Reinforced . | . . . Active Scanning Responses . | . . . Cargo Convoy Interrupts . | . . . Stealth | -11 -10 -10 --------- Run | Yrd Mat Sub Distress Signals 4 | . 4 . Communications Jammed . | . . . Distress Signals . | . . . Times Spotted 47 | . 32 15 Peak Tracking Total 6 | . 5 6 Tactical Retreats 2 | . 2 . Traps | -11 -10 -10 ------- Run | Yrd Mat Sub Traps Triggered 2 | . 2 . Indirectly . | . . . Trap Hack Attempts 32 | . 32 . Triggered . | . . . Disarmed . | . . . Reprogrammed 2 | . 2 . Reused . | . . . Traps Extracted . | . . . Installed . | . . . Triggered . | . . . Machines | -11 -10 -10 ---------- Run | Yrd Mat Sub Machines Disabled . | . . . Max in Single Turn . | . . . Machines Repaired . | . . . Machines Dismantled . | . . . Machines Sabotaged . | . . . Overloaded Fab Kills . | . . . Hacking | -11 -10 -10 --------- Run | Yrd Mat Sub Machines Accessed 10 | . 10 . Terminals 7 | . 7 . Fabricators . | . . . Repair Stations 1 | . 1 . Recycling Units 2 | . 2 . Scanalyzers . | . . . Garrison Access . | . . . Total Hacks 23 | . 23 . Successful 15 | . 15 . Failed 8 | . 8 . Catastrophic 2 | . 2 . Database Lockouts . | . . . Manual 5 | . 5 . Terminals 18 | . 18 . Fabricators . | . . . Repair Stations 1 | . 1 . Recycling Units 4 | . 4 . Scanalyzers . | . . . Garrison Access . | . . . Terminal Hacks 13 | . 13 . Record 6 | . 6 . Prototype ID Bank 3 | . 3 . Locate Traps 3 | . 3 . Dispatch Records 1 | . 1 . Fabricator Hacks . | . . . Repair Station Hacks . | . . . Recycling Unit Hacks 2 | . 2 . Report Inventory 2 | . 2 . Scanalyzer . | . . . Garrison Access Hacks . | . . . Unauthorized Hacks . | . . . Terminals . | . . . Fabricators . | . . . Repair Stations . | . . . Recycling Units . | . . . Scanalyzers . | . . . Garrison Access . | . . . Data Cores Recovered . | . . . Used . | . . . Hacking Detections 9 | . 9 . Full Trace Events . | . . . Feedback Events . | . . . Feedback Blocked . | . . . Robot Schematics Acquired . | . . . Robots Built . | . . . Authchips . | . . . Time . | . . . Total Robot Build Rating . | . . . Part Schematics Acquired . | . . . Parts Built . | . . . Authchips . | . . . Time . | . . . Total Part Build Rating . | . . . Part Studies Acquired . | . . . Parts Repaired . | . . . Time . | . . . Parts Recycled . | . . . Recycled Matter . | . . . Retrieved Matter . | . . . Retrieved Components . | . . . Parts Scanalyzed . | . . . Part Schematics Acquired . | . . . Parts Damaged . | . . . Bothacking | -11 -10 -10 ------------ Run | Yrd Mat Sub Used RIF Installer . | . . . Robots Hacked 1 | . 1 . Non-combat 1 | . 1 . Combat . | . . . Robot Hacks Applied 1 | . 1 . parse_system 1 | . 1 . Relay Couplers Released . | . . . Fabnet Peak Effective % . | . . . Robots Rewired . | . . . Allies Hacked . | . . . Hacks Repelled . | . . . Allies | -11 -10 -10 -------- Run | Yrd Mat Sub Total Allies . | . . . Largest Group . | . . . Highest-Rated Group . | . . . Highest-Rated Ally . | . . . Total Orders . | . . . Ally Attacks . | . . . Total Damage . | . . . Kills . | . . . Allies Corrupted . | . . . Allies Melted . | . . . X0-1V1 Amusement Gains 12 | . 12 . Good Acts 1 | . . 1 Intel | -11 -10 -10 ------- Run | Yrd Mat Sub Active Infowar (turns) 729 | . 729 . Sensors 729 | . 729 . Robot Analysis Total . | . . . Derelict Logs Recovered 1 | . . 1 Drone Launches . | . . . Drone Recoveries . | . . . Exploration | -11 -10 -10 ------------- Run | Yrd Mat Sub Turns Passed 2817 | 520 1830 467 Spaces Moved 1380 | 181 976 223 Core 6 | 6 . . Treads 1014 | . 920 94 Legs 129 | . . 129 Wheels 231 | 175 56 . Hover . | . . . Flight . | . . . Fastest Speed 50 | 50 80 160 Average Speed 149 | 79 155 177 Slowest Speed 260 | 80 160 260 Overloaded Moves . | . . . Propulsion Burnouts . | . . . Robots Hopped . | . . . Potential Cave-ins . | . . . Cave-ins Triggered . | . . . Exploration Rate (%) 41 | 11 97 15 Regions Visited 2 Branch Regions 1 Pre-discovered Areas . | . . . Known Exits Taken . | . . . Unknown Exits Taken 2 | 1 1 . Scrap Searched . | . . . Spaces Dug . | . . . Terrain Destroyed . | . . . Melee . | . . . Projectile . | . . . AOE . | . . . Terrain Rammed . | . . . Walls Destroyed . | . . . Machines Disabled . | . . . Actions | -11 -10 -10 --------- Run | Yrd Mat Sub Total 2001 | 557 1181 263 Wait 414 | 358 51 5 Move 1378 | 180 975 223 Hop . | . . . Pick Up 42 | 12 24 6 Fast Attach . | . . . Attach 14 | 6 6 2 Detach 1 | . 1 . Swap 23 | . 17 6 Drop 17 | . 12 5 Fire 70 | . 54 16 Melee 8 | . 8 . Ram 1 | 1 . . Kick . | . . . Crush 1 | . 1 . Escape Stasis . | . . . Rewire . | . . . Trap 32 | . 32 . Miscellaneous . | . . . Route ------- -11/Scrapyard -10/Materials (discovered 5 exits: [*Mat x3] / [*Min] / [*Sub]) -10/Subcaves History --------- Turn | Location | Event 17 | -11/Scrapyard | Discovered new exit (range 15) 521 | -11/Scrapyard | Entered Materials 522 | -10/Materials | Build established: Mutant 804 | -10/Materials | Discovered new exit (range 7) 1361 | -10/Materials | Discovered new exit (range 12) 1715 | -10/Materials | Discovered new exit (range 11) 2272 | -10/Materials | Discovered new exit (range 10) 2324 | -10/Materials | Discovered new exit (range 6) 2334 | -10/Materials | Prayed at D.C.S.S. Altar Unit 2351 | -10/Materials | Entered Subcaves 2352 | -10/Subcaves | Approached by a straggling Scientist 2381 | -10/Subcaves | Learned Materials stockpile data 2519 | -10/Subcaves | Ambushed by swarm of Subdwellers 2520 | -10/Subcaves | Ambushed by Subdwellers from Twisted Machinery 2526 | -10/Subcaves | Core integrity fell below 50% 2530 | -10/Subcaves | Core integrity fell below 20% 2818 | -10/Subcaves | Destroyed by MU-SZD(R) with Subdweller Shrapnel Launcher Last Messages --------------- 02670_ HV Slug penetrates RC-VFC(R). 02670_ RC-VFC(R) knocked back. 02670_ RC-VFC(R) destroyed. 02677_ Dropped Lgt. Assault Rifle. 02678_ Acquired Beamcaster. 02684_ Dropped Ion Engine. 02684_ Acquired Lgt. Angular Momentum Engine. 02704_ MR>8CSQGGAYMDCPZN1FTE4X#/< GKOWD15 6E-1GE(c): "I think it's somewhere northwest of here" 02791_ System corrupted: Heat flow error (+251). 02806_ BO-Y2S(R) knocked back. 02806_ 52-EQT(h) destroyed. 02808_ BO-Y2S(R) destroyed. 6E-1GE(c): "I think it's somewhere northwest of here" 02816_ FZ-SSN(g) destroyed. 02816_ 6E-1GE(c) destroyed. 02818_ Lgt. Ion Engine destroyed. 02818_ X0-1V1 giggles madly! Map ----- +----------------------------------------------------+ | ????????????????????????????????????????????? | | ????????????????????????????????????????????? | | ????????????????????????????????????????????? | | ????????????????????????????????????????????? | | ????????????????????????????????????????????? | | ????????????????????????????????????????????? | | ????????????????????????????????????????????? | | ????????????????????????????????????????????? | | ????????????????????????????????????????????? | | ????????????????????????????????????????????? | | ????????????????????????????????????????????? | | ???????????????? ??????????????????????????? | | ?????????????? ?????????????????????????? | | ?????????????? ??####???????????????????? | | ????????????? ?# ???????????????????? | | ??????????????# ## ???????????????????? | | ??????????????# ???????????????????? | | ???????????? ## #####??????????????? | | ????????????? ;;; #??????????????? | | ??????????????? R #??????????????? | | ?????????????????# ##?????????????? | | ?????????????????# #?????????????? | | ??????????????????# %%& #??????????????? | | ??????????????????# & ##?????????????? | | ??????????????????## ;; #?????????????? | | ???????????????????### ;;@ #?????????????? | | ?????????????????????###!%% ##?????????????? | | ?????????????????????## = ##??????????????? | | ?????????????????????# ##???????????????? | | ?????????????????????## ##???????????????? | | ??????????????????????## ##??????????????? | | ???????????????????????# #??????????????? | | ??????????????????????## #??????????????? | | ??????????????????????# #??????????????? | | ??????????????#####???## ##??????????????? | | ?????????????## #????### ##??????????????? | | ???????????### #?????# #??????????????? | | ???????????#" " ##?????## #??????????????? | | ??????????## "####??????## #??????????????? | | ?????????## ##???????### #??????????????? | | ????????##" #######?## #??????????????? | | ????????# ### #??????????????? | | ????????## " ## ## #??????????????? | | ?????????## """ # #####??????????????? | | ??????????# "" #?????????????????? | | ??????????# " " ##?????????????????? | | ?????????## " " ####??????????????????? | | ?????????# *"" ##?????????????????????? | | ?????????#* " #### #??????????????????????? | | ?????????#=""!##??## #?????????????????????? | +----------------------------------------------------+ Best States ------------- Heat Dissipation 25 Energy Generation 10 Energy Capacity 250 Matter Stores 300 Matter Capacity 300 Sight Range 16 Robot Scan Range 14 Terrain Scan Density 10 Weapon Shielding 33 Evasion (%) 44 Recoil Reduction 2 Item Schematics ----------------- None Robot Schematics ------------------ None Fabricated ------------ Nothing Repaired ---------- Nothing Studied --------- None Alien Tech Used ----------------- None Achievements -------------- Chaos Is Inevitable Hehehe Challenges ------------ None Game ------ Seed TerrorSpreadCharger Manual? 0 Play Time 00:32:10 Cumulative 118.5 hours Start 2026.07.12 @ 07:20:24 End 2026.07.12 @ 08:03:16 Sessions 1 Manual Loads 0 Difficulty Rogue Special Mode None Game No. 146 Rogue 146 Adventurer 0 Explorer 0 Win Type - Total 0 Types 0/0/0/0/0/0/0/0/0/0 Lore% 53 Gallery% 47 Achievement% 33 Wizard Run 0 Options --------- Layout 2 ASCII 0 Keyboard 0 Movement Numpad Keybinds 0 Fullscreen 1 Font 24/Smallcaps Map View 50x44 Zoom Use 0% Tactical HUD 1 Map Filters NONE Filters NONE Steam 1 RUN: 68cde723-fd08-40b2-94b8-6af630d7c8d5